{"text_format":"3","workbook":"xlsx","n_sheets":2,"sheets":["DIR-GC-FTO-015","Hoja2"],"not_rendered":{"images":1,"external_links":1,"defined_names":1},"read":"whole","date_system":"1900"}

{"sheet":"DIR-GC-FTO-015","index":0,"n_rows":55,"n_cols":17,"rows_kept":55,"merged":[[0,0,5,1],[0,2,1,10],[0,15,2,16],[2,2,2,10],[3,2,3,10],[3,15,5,16],[4,2,4,3],[4,4,4,5],[4,6,4,8],[4,9,4,10],[5,2,5,3],[5,4,5,5],[5,6,5,8],[5,9,5,10],[7,0,13,0],[7,1,13,1],[7,11,7,12],[7,13,7,14],[7,16,13,16],[8,11,8,12],[8,13,8,14],[10,11,10,12],[10,13,10,14],[11,11,11,12],[11,13,11,14],[13,11,13,14],[14,0,18,0],[14,1,18,1],[14,11,14,12],[14,13,14,14],[14,16,18,16],[15,11,15,12],[15,13,15,14],[16,11,16,12],[16,13,16,14],[17,11,17,12],[17,13,17,14],[18,11,18,12],[18,13,18,14],[19,0,31,0],[19,1,31,1],[19,11,19,14],[19,16,31,16],[20,11,20,12],[20,13,20,14],[21,11,21,14],[23,11,23,14],[27,11,27,14],[28,11,28,12],[28,13,28,14],[31,11,31,14],[32,0,46,0],[32,1,46,1],[32,13,33,14],[32,16,46,16],[34,11,34,12],[34,13,34,14],[35,11,35,14],[36,11,36,12],[36,13,36,14],[37,11,37,12],[37,13,37,14],[38,11,38,12],[38,13,38,14],[39,11,39,12],[39,13,39,14],[40,11,40,12],[40,13,40,14],[41,11,41,12],[41,13,41,14],[42,11,42,12],[42,13,42,14],[43,11,43,12],[43,13,43,14],[46,11,46,14],[47,0,54,0],[47,1,54,1],[47,16,54,16],[48,11,48,14],[49,11,49,12],[49,13,49,14],[50,11,50,12],[50,13,50,14],[52,11,52,12],[52,13,52,14],[53,11,53,12],[53,13,53,14]]}
[null,null,"SISTEMA DE GESTIÓN DE CALIDAD\nINSTITUTO MUNICIPAL DE DEPORTES Y RECREACIÓN DE CAJICÁ",{"$nulls":12},"PROMEDIO GENERAL VIGENCIA 2025"]
[]
[null,null,"GESTIÓN DE CALIDAD"]
[null,null,"MATRIZ DE INDICADORES",{"$nulls":12},{"$f":"AVERAGE(Q8:Q55)","v":{"v":0.9405103021978022,"d":"94 %"}}]
[null,null,"CÓDIGO",null,"VERSIÓN",null,"FECHA",null,null,"PÁGINA"]
[null,null,"DIR-GC-FTO-015",null,4,null,"2025-05-20",null,null,"1 DE 1"]
["No.","OBJETIVO DE CALIDAD","SISTEMA DE GESTIÓN DE CALIDAD\nINSTITUTO MUNICIPAL DE DEPORTES Y RECREACIÓN DE CAJICÁ","NOMBRE\nDEL INDICADOR","FORMULA","TIPO","OBJETIVO DE \nLA MEDICIÓN","META","FRECUENCIA","FUENTE DE\nDATOS","RESPONSABLE\n(CARGO)","1 er\nTrimestre","2 do\nTrimestre","3 er\nTrimestre","4 to\nTrimestre","PROMEDIO","PROMEDIO POR OBJETIVO"]
[1,"1.\tFomentar el deporte formativo integral en el municipio de Cajicá, promoviendo la práctica del deporte, la recreación, la actividad física y el aprovechamiento del tiempo libre mediante estrategias y programas que incluyan hábitos de vida saludable, favoreciendo a la calidad de vida de la comunidad.","Deporte Formativo Escolar","Participación y Deserción Deportiva ","Cantidad de deportistas inscritos - Cantidad de Deserción Deportiva","EFECTIVIDAD","Garantizar la participación de niños, niñas, adolescentes y jóvenes en los diferentes deportes avalados que oferta la entidad, realizar seguimiento a la deserción de los deportistas e informar la cantidad de atendidos, para el seguimiento y cumplimiento de la META 203 del PDM. (Meta anual: 10.000 deportistas atendidos)",{"v":1,"d":"100 %"},"Semestral","Base de datos de la plataforma institucional.","Contratista Líder Deporte Formativo Escolar",{"v":0.84,"d":"84 %"},null,{"v":1,"d":"100 %"},null,{"$f":"AVERAGE(L8:O8)","v":{"v":0.9199999999999999,"d":"92 %"}},{"$f":"AVERAGE(P8:P14)","v":{"v":0.964642857142857,"d":"96 %"}}]
[null,null,"Deporte Asociado y Competitivo","Asesorías a Clubes Deportivos","(Número de clientes satisfechos / Número total de clientes encuestados) x 100","EFICIENCIA","Determinar la satisfacción de los usuarios, representantes de los clubes deportivos o interesados en constituir un club deportivo en Cajicá, que reciben asesorías personalizadas frente al proceso del Reconocimiento Deportivo.",{"v":0.8,"d":"80 %"},"Semestral","Registro base de datos asesorías clubes deportivos.\nEncuesta de Satisfacción.","Contratista Líder Deporte Asociado y Competitivo",{"v":1,"d":"100 %"},null,{"v":1,"d":"100 %"},null,{"$f":"AVERAGE(L9:O9)","v":{"v":1,"d":"100 %"}}]
[null,null,"Deporte Asociado y Competitivo","Cobertura en Eventos","No. Deportistas Inscritos *100% /No. Deportistas Proyectados en participación al corte de cada trimestre.","EFECTIVIDAD","Analizar la cobertura  final del evento o actividad con respecto a la proyección de participación  de acuerdo con la naturaleza del evento.",{"v":0.9,"d":"90 %"},"Trimestralmente","Formulario/googleEncuestas de satisfacción ","Lider Deporte asociado y competitivo",{"v":1,"d":"100 %"},{"v":1,"d":"100 %"},{"v":1,"d":"100 %"},{"v":1,"d":"100 %"},{"v":1,"d":"100 %"}]
[null,null,"Fomento y Desarrollo Social","Satisfacción de eventos ","∑ de porcentaje de calificacion del evento/ numer de eventos x 100","EFECTIVIDAD","Identifica la percepción de los usuarios que asisten a los diferentes eventos ejecutados por el proceso, con el fin de medir la satisfaccion del usuario en los eventos del proceso de Fomento y Desarrollo Social.",{"v":0.9,"d":"90 %"},"Semestal","Encuestas de satisfacción ","Contratista Líder Fomento y Desarrollo Social ",{"v":0.96,"d":"96 %"},null,{"v":0.89,"d":"89 %"},null,{"v":0.925,"d":"93 %"}]
[null,null,"Fomento y Desarrollo Social","Satisfacción de programas ","∑ de porcentaje de calificacion por programa/ numero de programas x 100","EFECTIVIDAD","Identifica la percepción de los usuarios que asisten a los diferentes programas ejecutados por el proceso, con el fin de medir la satisfaccion del usuario en los programas del proceso de Fomento y Desarrollo Social.",{"v":0.9,"d":"90 %"},"Semestral","Encuestas de satisfacción ","Contratista Líder Fomento y Desarrollo Social ",{"v":0.94,"d":"94 %"},null,{"v":0.96,"d":"96 %"},null,{"v":0.95,"d":"95 %"}]
[null,null,"Deporte Asociado y Competitivo","Satisfacción de eventos ","Suma de numero calificacion porcentual de los eventos del trimestre / numero de eventos del trimestre","EFECTIVIDAD","Identificar el porcentaje de satisfacción de las personas en los eventos deportivos, teniendo en cuenta la naturaleza del evento.",{"v":0.8,"d":"80 %"},"Trimestralmente","Formulario Google/Encuenta de satisfacción "," Líder Deporte Asociado y Competitivo",{"v":0.95,"d":"95 %"},{"v":0.95,"d":"95 %"},{"v":0.97,"d":"97 %"},{"v":0.96,"d":"96 %"},{"v":0.9575,"d":"96 %"}]
[null,null,"Deporte Altos Logros","CUMPLIMIENTO A LAS FASES DEL PROGRAMA DE DETECCIÓN Y SELECCIÓN DE TALENTOS","SUMA LA CANTIDAD DE DEPORTISTAS VINCULADOS Y/O ATENDIDOS","EFECTIVIDAD","IDENTIFICAR EL RESULTADO, DEL DESARROLLO DE LAS TRES FASES DEL PROCESO DE DETECCIÓN Y SELECCIÓN DE TALENTOS, DANDO",{"v":0.8,"d":"80 %"},"ANUAL","DIR-ADAL-FTO-011 FORMATO DE TEST PEDAGÓGICOS PRUEBAS DETECCIÓN Y SELECCIÓN DE TALENTOS\n\nDIR-ADFE-FTO-001- FORMATO VALORACIÓN Y EVALUACIÓN FESTIVAL POLIMOTOR\n\nDIR-ADFE-FTO-OO2 FORMATO DE RECOLECCIÓN DE DATOS PRUEBAS DETECCIÓN Y SELECCIÓN DE TALENTOS","CONTRATISTA LÍDER DEPORTE DE ALTOS LOGROS",{"v":1,"d":"100 %"},{"$nulls":3},{"v":1,"d":"100 %"}]
[2,"2.\tImplementar programas de formación que favorezcan al desarrollo integral del deportista y la calidad de vida de la comunidad, garantizando el acceso al deporte desde las primeras etapas y promoviendo la creación de una base sólida que permita ser parte de un proceso sistemático, planificado y estructurado, enfocado en el crecimiento formativo y competitivo.","Deporte Formativo Escolar","Participación y Deserción Deportiva ","Cantidad de deportistas inscritos - Cantidad de Deserción Deportiva","EFECTIVIDAD","Garantizar la participación de niños, niñas, adolescentes y jóvenes en los diferentes deportes avalados que oferta la entidad, realizar seguimiento a la deserción de los deportistas e informar la cantidad de atendidos, para el seguimiento y cumplimiento de la META 203 del PDM. (Meta anual: 10.000 deportistas atendidos)",{"v":1,"d":"100 %"},"Semestral","Base de datos de la plataforma institucional.","Contratista Líder Deporte Formativo Escolar",{"v":0.84,"d":"84 %"},null,{"v":1,"d":"100 %"},null,{"$f":"AVERAGE(L15:O15)","v":{"v":0.9199999999999999,"d":"92 %"}},{"$f":"AVERAGE(P15:P19)","v":{"v":0.917,"d":"92 %"}}]
[null,null,"Fomento y Desarrollo Social","Satisfacción de programas ","∑ de porcentaje de calificacion por programa/ numero de programas x 100","EFECTIVIDAD","Identifica la percepción de los usuarios que asisten a los diferentes programas ejecutados por el proceso, con el fin de medir la satisfaccion del usuario en los programas del proceso de Fomento y Desarrollo Social.",{"v":0.9,"d":"90 %"},"Semestral","Encuestas de satisfacción ","Contratista Líder Fomento y Desarrollo Social ",{"v":0.94,"d":"94 %"},null,{"v":0.96,"d":"96 %"},null,{"v":0.95,"d":"95 %"}]
[null,null,"Deporte Formativo Escolar","Deportes Avalados y Deportes Implementados","Cantidad de Deportes Implementados  / Cantidad de Deportes Avalados  * 100","EFECTIVIDAD","Aumentar la oferta institucional para la comunidad Cajiqueña e informar la cantidad de deportes implementados en cumplimiento de la META 203 del PDM. (Meta Cuatrienio: 3 deportes avalados)",{"v":0.8,"d":"80 %"},"Semestral","Acto administrativo y oferta institucional. ","Contratista Líder Deporte Formativo Escolar",{"v":0.81,"d":"81 %"},null,{"v":0.83,"d":"83 %"},null,{"$f":"AVERAGE(L17:O17)","v":{"v":0.8200000000000001,"d":"82 %"}}]
[null,null,"Área Técnica Misional ","Grupo Interno de Trabajo Metodólogo deportivo","Autosuma o Suma la cantidad de entrenadores deportivos apoyados metodológicamente.","EFECTIVIDAD","Medir catidad de actividades desarrolladas para la preparación deportiva y competitiva de los deportistas mediante el respaldo metodológico a los entrenadores deportivos, cumpliendo la Meta 206 el Plan de Desarrollo Municipal ",{"v":1,"d":"100 %"},"semestral","Grupo Interno de Trabajo Metodólogo deportivo.   ","Contratista líder Área Técnica Misional",{"v":0.99,"d":"99 %"},null,{"v":0.99,"d":"99 %"},null,{"v":0.99,"d":"99 %"}]
[null,null,"Área Técnica Misional ","Grupo Interno de Trabajo Interdisciplinario","Autosuma o Suma la cantidad de deportistas atendidos.","EFECTIVIDAD","Medir la asistencia técnica especializada del grupo interno de trabajo interdisciplinario. Informar la cantidad de deportistas atendidos, para el seguimiento y cumplimiento de la META 206, indicador 9 atención a 500 deportistas. ",{"v":1,"d":"100 %"},"semestral","Plataforma Playsync - seguimiento Grupo Interno de Trabajo Interdisciplinario","Contratista líder Área Técnica Misional",{"v":0.87,"d":"87 %"},null,{"v":0.94,"d":"94 %"},null,{"v":0.905,"d":"91 %"}]
[3,"3.\tAdministrar de manera eficiente los recursos, con la finalidad de garantizar el adecuado funcionamiento y la inversión que permita proporcionar una óptima prestación del servicio, así como asegurar el acceso a una infraestructura deportiva adecuada. Garantizando el posicionamiento a través de un deporte asociado y competitivo.","Gestión Financiera","% RECAUDO DE RECURSOS PROPIOS","(Recaudo/ Presupuesto definitivo)*100","EFICIENCIA","MIDE EL PORCENTAJE DE RECAUDO PRESUPUESTAL DE LOS RECURSOS DEL PROPIOS DEL INSDEPORTES CAJICÁ, con base a unos limites inferiores de recaudo para cada uno de los trimestres del año. ",{"v":1,"d":"100 %"},"Trimestralmente","Software contable y presupuestal SYSMAN","Profesional Universitario del Área Financiera",{"v":1,"d":"100 %"},{"$nulls":3},{"$f":"AVERAGE(L20)","v":{"v":1,"d":"100 %"}},{"$f":"AVERAGE(P20:P32)","v":{"v":0.9288461538461539,"d":"93 %"}}]
[null,null,"Deporte Altos Logros","Gestión de apoyos deportivos proceso deporte de altos logros","Número de apoyos otorgados /\nMeta estimada (máximo posible) × 100l ","EFICIENCIA","Medir el número de deportistas beneficiados con apoyos para salidas deportivas en las diferentes disciplinas deportivas del Instituto de Deportes y Recreación de Cajicá, comparando el total de deportistas apoyados con la meta o línea base anual de 3,120 deportistas.",{"v":0.8,"d":"80 %"},"SEMESTRAL","DIR-ADAL-FTO-008 Matriz de control y seguimiento de apoyos deportivos","CONTRATISTA LÍDER DEPORTE DE ALTOS LOGROS",{"v":0.89,"d":"89 %"},null,{"v":0.98,"d":"98 %"},null,{"v":0.935,"d":"94 %"}]
[null,null,"Gestión Documental, Ventanilla Única y Atención al Ciudadano","TABLAS DE RETENCIÓN APLICADAS","Tablas convalidadas/total de tablas aplicadas","EFICACIA","Este indicador se establece con el fin de medir la cantidad de Tablas de Retención Documental aplicadas en el Instituto contra cantidad de Tablas de las cuales se logró una convalidación en el Consejo Departamental de Archivos",{"v":1,"d":"100 %"},"Anual","TABLAS DE RETENCIÓN CONVALIDADAS","Contratista de Apoyo – Gestión Documental",{"v":0.88,"d":"88 %"},{"$nulls":3},{"v":0.88,"d":"88 %"}]
[null,null,"Gestión Documental, Ventanilla Única y Atención al Ciudadano","Eficacia en la respuesta a los derechos de petición y/o PQRS","Comunicaciones respondidas a tiempo/total de Comunicaciones que requieren rta*100","EFICACIA","Medir la eficacia en la respuesta dada a las comunicaciones recibidos en el Instituto",{"v":0.9,"d":"90 %"},"Trimestral","Sysman - Módulo de Administración de Documentos","Contratista de Apoyo – Gestión Documental",{"v":0.94,"d":"94 %"},{"v":0.94,"d":"94 %"},{"v":0.93,"d":"93 %"},{"v":0.94,"d":"94 %"},{"$f":"AVERAGE(L23:O23)","v":{"v":0.9375,"d":"94 %"}}]
[null,null,"Gestión Documental, Ventanilla Única y Atención al Ciudadano","TRANSFERENCIAS DOCUMENTALES EFECTIVAS","Transferencias efectivas/total transferencias programadas*100","EFICACIA","Este indicador se establece con el fin de medir la cantidad de transferencias documentales que se llevaron a cabo en cumplimiento del Plan de Transferencias",{"v":0.9,"d":"90 %"},"Anual","Plan de Transferencias Documentales - Cronograma","Contratista de Apoyo – Gestión Documental",{"v":0.86,"d":"86 %"},{"$nulls":3},{"v":0.86,"d":"86 %"}]
[null,null,"Gestión Física de Escenarios Deportivos","Cumplimiento de actividades programadas","# Actividades  ejecutadas/# Actividades programadas *100 ","EFICIENCIA","Identificar el cumplimiento de la actividades programadas durante el periodo.",{"v":0.8,"d":"80 %"},"Trimestralmente","DIR-GFED-FTO-007 FORMATO MATRIZ DE PROGRAMACIÓN Y RECURSOS INVERTIDOS EN LOS ESCENARIOS DEPORTIVOS","Contratista Líder Gestión Física de Escenarios Deportivos",{"v":0.85,"d":"85 %"},{"v":0.91,"d":"91 %"},{"v":0.91,"d":"91 %"},{"v":0.95,"d":"95 %"},{"v":0.905,"d":"91 %"}]
[null,null,"Gestión Física de Escenarios Deportivos","Préstamos o alquiler de escenarios aprobados","# Préstamos aprobados/# Solicitados *100","EFICACIA","Identificar el número de solicitudes aprobadas",{"v":0.8,"d":"80 %"},"Trimestralmente","Registro de correspondencia","Contratista Líder Gestión Física de Escenarios Deportivos",{"v":0.89,"d":"89 %"},{"v":0.9,"d":"90 %"},{"v":0.95,"d":"95 %"},{"v":0.95,"d":"95 %"},{"v":0.9225000000000001,"d":"92 %"}]
[null,null,"Gestión Documental, Ventanilla Única y Atención al Ciudadano","Eficacia en la respuesta a los derechos de petición y/o PQRS","Comunicaciones respondidas a tiempo/total de Comunicaciones que requieren rta*100","EFICACIA","Medir la eficacia en la respuesta dada a las comunicaciones recibidos en el Instituto",{"v":0.9,"d":"90 %"},"Trimestral","Sysman - Módulo de Administración de Documentos","Contratista de Apoyo – Gestión Documental",{"v":0.94,"d":"94 %"},{"v":0.94,"d":"94 %"},{"v":0.93,"d":"93 %"},{"v":0.94,"d":"94 %"},{"v":0.9375,"d":"94 %"}]
[null,null,"Gestión Documental, Ventanilla Única y Atención al Ciudadano","TRANSFERENCIAS DOCUMENTALES EFECTIVAS","Transferencias efectivas/total transferencias programadas*100","EFICACIA","Este indicador se establece con el fin de medir la cantidad de transferencias documentales que se llevaron a cabo en cumplimiento del Plan de Transferencias",{"v":0.9,"d":"90 %"},"Anual","Plan de Transferencias Documentales - Cronograma","Contratista de Apoyo – Gestión Documental",{"v":0.86,"d":"86 %"},{"$nulls":3},{"v":0.86,"d":"86 %"}]
[null,null,"Deporte Asociado y Competitivo","Asesorías a Clubes Deportivos","(Número de clientes satisfechos / Número total de clientes encuestados) x 100","EFICIENCIA","Determinar la satisfacción de los usuarios, representantes de los clubes deportivos o interesados en constituir un club deportivo en Cajicá, que reciben asesorías personalizadas frente al proceso del Reconocimiento Deportivo.",{"v":0.8,"d":"80 %"},"Semestral","Registro base de datos asesorías clubes deportivos.\nEncuesta de Satisfacción.","Contratista Líder Deporte Asociado y Competitivo",{"v":1,"d":"100 %"},null,{"v":1,"d":"100 %"},null,{"v":1,"d":"100 %"}]
[null,null,"Deporte Asociado y Competitivo","Cobertura en Eventos","No. Deportistas Inscritos *100% /No. Deportistas Proyectados en participación al corte de cada trimestre.","EFECTIVIDAD","Analizar la cobertura  final del evento o actividad con respecto a la proyección de participación  de acuerdo con la naturaleza del evento.",{"v":0.9,"d":"90 %"},"Trimestralmente","Formulario/googleEncuestas de satisfacción ","Lider Deporte asociado y competitivo",{"v":1,"d":"100 %"},{"v":1,"d":"100 %"},{"v":1,"d":"100 %"},{"v":1,"d":"100 %"},{"v":1,"d":"100 %"}]
[null,null,"Deporte Asociado y Competitivo","Satisfacción de eventos ","Suma de numero calificacion porcentual de los eventos del trimestre / numero de eventos del trimestre","EFECTIVIDAD","Identificar el porcentaje de satisfacción de las personas en los eventos deportivos, teniendo en cuenta la naturaleza del evento.",{"v":0.8,"d":"80 %"},"Trimestralmente","Formulario Google/Encuenta de satisfacción "," Líder Deporte Asociado y Competitivo",{"v":0.95,"d":"95 %"},{"v":0.95,"d":"95 %"},{"v":0.97,"d":"97 %"},{"v":0.96,"d":"96 %"},{"v":0.9575,"d":"96 %"}]
[null,null,"Gestión Documental, Ventanilla Única y Atención al Ciudadano","TABLAS DE RETENCIÓN APLICADAS","Tablas convalidadas/total de tablas aplicadas","EFICACIA","Este indicador se establece con el fin de medir la cantidad de Tablas de Retención Documental aplicadas en el Instituto contra cantidad de Tablas de las cuales se logró una convalidación en el Consejo Departamental de Archivos",{"v":1,"d":"100 %"},"Anual","TABLAS DE RETENCIÓN CONVALIDADAS","Contratista de Apoyo – Gestión Documental",{"v":0.88,"d":"88 %"},{"$nulls":3},{"v":0.88,"d":"88 %"}]
[4,"4.\tImplementar la Política Pública del Deporte en Cajicá, promoviendo una atención equilibrada, armónica y multidimensional, que contribuya a su función social, comunitaria, cultural, educativa, económica, formativa y competitiva.","Gestión de Comunicaciones","ALCANCE","/Número de Actividades Cumplidas/Número Total de Actividades​)×100 ","EFECTIVIDAD","Medir y monitorear el cumplimiento del equipo en la realización de tareas asignadas, asegurando que se completen dentro del tiempo estipulado, con el fin de mejorar la eficiencia y garantizar la entrega puntual de resultados.",{"v":0.9,"d":"90 %"},"Trimestralmente"," DIR-GCOM-FTO-004 BITÁCORA DE COMUNICACIONES.  ","LÍDER DE LA GESTIÓN DE COMUNICACIONES",{"v":0.98,"d":"98 %"},{"v":0.96,"d":"96 %"},null,null,{"$f":"AVERAGE(L33:M33)","v":{"v":0.97,"d":"97 %"}},{"$f":"AVERAGE(P33:P47)","v":{"v":0.9454999999999999,"d":"95 %"}}]
[null,null,"Gestión de Comunicaciones","ALCANCE DE COMUNICACIONES ","Número de seguidores alcanzados en redes sociales  en el trimestre l/número de seguidores propuestos en la meta X100","EFECTIVIDAD","Evaluar el cumplimiento de la meta trimestral de alcanzar 700 seguidores  para las cuentas de INSDEPORTES CAJICÁ. Esto permitirá medir el crecimiento y la expansión de la comunidad, además de identificar oportunidades de mejora mediante la implementación de nuevas herramientas y técnicas de difusión más efectivas.",{"v":0.8,"d":"80 %"},"Trimestralmente","DIR-GCOM-FTO-004 BITÁCORA DE COMUNICACIONES","LÍDER DE LA GESTIÓN DE COMUNICACIONES",{"v":0.91,"d":"91 %"},{"v":1,"d":"100 %"},null,null,{"$f":"AVERAGE(L34:M34)","v":{"v":0.9550000000000001,"d":"96 %"}}]
[null,null,"Deporte Formativo Escolar","Participación y Deserción Deportiva ","Cantidad de deportistas inscritos - Cantidad de Deserción Deportiva","EFECTIVIDAD","Garantizar la participación de niños, niñas, adolescentes y jóvenes en los diferentes deportes avalados que oferta la entidad, realizar seguimiento a la deserción de los deportistas e informar la cantidad de atendidos, para el seguimiento y cumplimiento de la META 203 del PDM. (Meta anual: 10.000 deportistas atendidos)",{"v":1,"d":"100 %"},"Semestral","Base de datos de la plataforma institucional.","Contratista Líder Deporte Formativo Escolar",{"v":0.84,"d":"84 %"},null,{"v":1,"d":"100 %"},null,{"$f":"AVERAGE(L35:O35)","v":{"v":0.9199999999999999,"d":"92 %"}}]
[null,null,"Deporte Altos Logros","CUMPLIMIENTO A LAS FASES DEL PROGRAMA DE DETECCIÓN Y SELECCIÓN DE TALENTOS","SUMA LA CANTIDAD DE DEPORTISTAS VINCULADOS Y/O ATENDIDOS","EFECTIVIDAD","IDENTIFICAR EL RESULTADO, DEL DESARROLLO DE LAS TRES FASES DEL PROCESO DE DETECCIÓN Y SELECCIÓN DE TALENTOS, DANDO",{"v":0.8,"d":"80 %"},"ANUAL","DIR-ADAL-FTO-011 FORMATO DE TEST PEDAGÓGICOS PRUEBAS DETECCIÓN Y SELECCIÓN DE TALENTOS\n\nDIR-ADFE-FTO-001- FORMATO VALORACIÓN Y EVALUACIÓN FESTIVAL POLIMOTOR\n\nDIR-ADFE-FTO-OO2 FORMATO DE RECOLECCIÓN DE DATOS PRUEBAS DETECCIÓN Y SELECCIÓN DE TALENTOS","CONTRATISTA LÍDER DEPORTE DE ALTOS LOGROS",{"v":1,"d":"100 %"},{"$nulls":3},{"v":1,"d":"100 %"}]
[null,null,"Deporte Altos Logros","Gestión de apoyos deportivos proceso deporte de altos logros","Número de apoyos otorgados /\nMeta estimada (máximo posible) × 100l ","EFICIENCIA","Medir el número de deportistas beneficiados con apoyos para salidas deportivas en las diferentes disciplinas deportivas del Instituto de Deportes y Recreación de Cajicá, comparando el total de deportistas apoyados con la meta o línea base anual de 3,120 deportistas.",{"v":0.8,"d":"80 %"},"SEMESTRAL","DIR-ADAL-FTO-008 Matriz de control y seguimiento de apoyos deportivos","CONTRATISTA LÍDER DEPORTE DE ALTOS LOGROS",{"v":0.89,"d":"89 %"},null,{"v":0.98,"d":"98 %"},null,{"v":0.935,"d":"94 %"}]
[null,null,"Fomento y Desarrollo Social","Satisfacción de eventos ","∑ de porcentaje de calificacion del evento/ numer de eventos x 100","EFECTIVIDAD","Identifica la percepción de los usuarios que asisten a los diferentes eventos ejecutados por el proceso, con el fin de medir la satisfaccion del usuario en los eventos del proceso de Fomento y Desarrollo Social.",{"v":0.9,"d":"90 %"},"Semestal","Encuestas de satisfacción ","Contratista Líder Fomento y Desarrollo Social ",{"v":0.96,"d":"96 %"},null,{"v":0.89,"d":"89 %"},null,{"v":0.925,"d":"93 %"}]
[null,null,"Fomento y Desarrollo Social","Satisfacción de programas ","∑ de porcentaje de calificacion por programa/ numero de programas x 100","EFECTIVIDAD","Identifica la percepción de los usuarios que asisten a los diferentes programas ejecutados por el proceso, con el fin de medir la satisfaccion del usuario en los programas del proceso de Fomento y Desarrollo Social.",{"v":0.9,"d":"90 %"},"Semestral","Encuestas de satisfacción ","Contratista Líder Fomento y Desarrollo Social ",{"v":0.94,"d":"94 %"},null,{"v":0.96,"d":"96 %"},null,{"v":0.95,"d":"95 %"}]
[null,null,"Área Técnica Misional ","Grupo Interno de Trabajo Interdisciplinario","Autosuma o Suma la cantidad de deportistas atendidos.","EFECTIVIDAD","Medir la asistencia técnica especializada del grupo interno de trabajo interdisciplinario. Informar la cantidad de deportistas atendidos, para el seguimiento y cumplimiento de la META 206, indicador 9 atención a 500 deportistas. ",{"v":1,"d":"100 %"},"¿","Plataforma Playsync - seguimiento Grupo Interno de Trabajo Interdisciplinario","Contratista líder Área Técnica Misional",{"v":0.87,"d":"87 %"},null,{"v":0.94,"d":"94 %"},null,{"v":0.905,"d":"91 %"}]
[null,null,"Deporte Formativo Escolar","Deportes Avalados y Deportes Implementados","Cantidad de Deportes Implementados  / Cantidad de Deportes Avalados  * 100","EFECTIVIDAD","Aumentar la oferta institucional para la comunidad Cajiqueña e informar la cantidad de deportes implementados en cumplimiento de la META 203 del PDM. (Meta Cuatrienio: 3 deportes avalados)",{"v":0.8,"d":"80 %"},"Semestral","Acto administrativo y oferta institucional. ","Contratista Líder Deporte Formativo Escolar",{"v":0.81,"d":"81 %"},null,{"v":0.83,"d":"83 %"},null,{"v":0.8200000000000001,"d":"82 %"}]
[null,null,"Área Técnica Misional ","Grupo Interno de Trabajo Metodólogo deportivo","Autosuma o Suma la cantidad de entrenadores deportivos apoyados metodológicamente.","EFECTIVIDAD","Medir catidad de actividades desarrolladas para la preparación deportiva y competitiva de los deportistas mediante el respaldo metodológico a los entrenadores deportivos, cumpliendo la Meta 206 el Plan de Desarrollo Municipal ",{"v":1,"d":"100 %"},"semestral","Grupo Interno de Trabajo Metodólogo deportivo.   ","Contratista líder Área Técnica Misional",{"v":0.99,"d":"99 %"},null,{"v":0.99,"d":"99 %"},null,{"v":0.99,"d":"99 %"}]
[null,null,"Deporte Formativo Escolar","Satisfacción Clientes","Resultado de la encuesta  / meta * 100","EFICACIA","Medir la satisfacción los servicio ofertados por la entidad para los deportistas y padres de familia.",{"v":0.8,"d":"80 %"},"Semestral","Encuesta Formulario Google ","Contratista Líder Deporte Formativo Escolar",{"v":0.88,"d":"88 %"},null,{"v":0.89,"d":"89 %"},null,{"v":0.885,"d":"89 %"}]
[null,null,"Deporte Asociado y Competitivo","Asesorías a Clubes Deportivos","(Número de clientes satisfechos / Número total de clientes encuestados) x 100","EFICIENCIA","Determinar la satisfacción de los usuarios, representantes de los clubes deportivos o interesados en constituir un club deportivo en Cajicá, que reciben asesorías personalizadas frente al proceso del Reconocimiento Deportivo.",{"v":0.8,"d":"80 %"},"Semestral","Registro base de datos asesorías clubes deportivos.\nEncuesta de Satisfacción.","Contratista Líder Deporte Asociado y Competitivo",{"v":1,"d":"100 %"},null,{"v":1,"d":"100 %"},null,{"v":1,"d":"100 %"}]
[null,null,"Deporte Asociado y Competitivo","Cobertura en Eventos","No. Deportistas Inscritos *100% /No. Deportistas Proyectados en participación al corte de cada trimestre.","EFECTIVIDAD","Analizar la cobertura  final del evento o actividad con respecto a la proyección de participación  de acuerdo con la naturaleza del evento.",{"v":0.9,"d":"90 %"},"Trimestralmente","Formulario/googleEncuestas de satisfacción ","Lider Deporte asociado y competitivo",{"v":1,"d":"100 %"},{"v":1,"d":"100 %"},{"v":1,"d":"100 %"},{"v":1,"d":"100 %"},{"v":1,"d":"100 %"}]
[null,null,"Deporte Asociado y Competitivo","Satisfacción de eventos ","Suma de numero calificacion porcentual de los eventos del trimestre / numero de eventos del trimestre","EFECTIVIDAD","Identificar el porcentaje de satisfacción de las personas en los eventos deportivos, teniendo en cuenta la naturaleza del evento.",{"v":0.8,"d":"80 %"},"Trimestralmente","Formulario Google/Encuenta de satisfacción "," Líder Deporte Asociado y Competitivo",{"v":0.95,"d":"95 %"},{"v":0.95,"d":"95 %"},{"v":0.97,"d":"97 %"},{"v":0.96,"d":"96 %"},{"v":0.9575,"d":"96 %"}]
[null,null,"Gestión Administrativa","Fases politicas deportiva ","Promedio por fases ","EFICIENCIA","N/A",{"v":1,"d":"100 %"},"Trimestralmente","Ejecución física politica públic","Contratista - Política Publica Deportiva",{"v":0.97,"d":"97 %"},{"$nulls":3},{"v":0.97,"d":"97 %"}]
[5,"5.\tGarantizar que el sistema de gestión de calidad permita a la entidad estructurarse de manera sólida, optimizando procesos y procedimientos para fomentar la eficiencia y la eficacia, aportando un legado de mejora continua que favorezcan el crecimiento continuo para las futuras generaciones.","Gestión Jurídica","ACTOS ADMINISTRATIVOS","Número de resoluciones expedidas/Número de resoluciones notificadas, publicadas y/o comunicadas.","EFECTIVIDAD","Fortalecer la seguridad  y el correcto seguimiento en los tiempos de Comuicación, Notificación y publicación  de las resoluciones solicitadas al proceso de gestión jurídica.",{"v":0.8,"d":"80 %"},"Triimestral","JUR-GJ-FTO-002 SEGUIMIENTO DE LAS RESOLUCIONES ..","Jefe de la Oficina Jurídica",{"v":1,"d":"100 %"},{"v":1,"d":"100 %"},{"v":1,"d":"100 %"},{"v":0.96,"d":"96 %"},{"v":0.99,"d":"99 %"},{"$f":"AVERAGE(P48:P55)","v":{"v":0.9465625000000001,"d":"95 %"}}]
[null,null,"Gestión Humana","PORCENTAJE DE CUMPLIMIENTO","No. Actividades ejecutadas  X 100\nNo. Actividades Programadas","EFICACIA","Medir el cumplimiento de las actividades programadas en el Plan  de Incentivos Institucionales y Bienestar.",{"v":0.8,"d":"80 %"},"Anual","Los datos son obtenidos del formato ADM-GH-FTO-006 SEGUIMIENTO DE ACTIVIDADES resultados encuestas, control de registros.","Apoyo de Gestión Humana.",{"v":1,"d":"100 %"},{"$nulls":3},{"v":1,"d":"100 %"}]
[null,null,"Almacén","Satisfacción del cliente","% = # valoración positiva/total valoración obtenida*100","EFICACIA","Conocer a fondo la opinión del cliente externo respecto al servicio que se le presta.",{"v":1,"d":"100 %"},"Semestral ","Encuesta de satisfacción","Contratista de apoyo al almacén",{"v":0.88,"d":"88 %"},null,{"v":0.94,"d":"94 %"},null,{"v":0.9099999999999999,"d":"91 %"}]
[null,null,"Deporte Formativo Escolar","Satisfacción Clientes","Resultado de la encuesta  / meta * 100","EFICACIA","Medir la satisfacción los servicio ofertados por la entidad para los deportistas y padres de familia.",{"v":0.8,"d":"80 %"},"Semestral","Encuesta Formulario Google ","Contratista Líder Deporte Formativo Escolar",{"v":0.88,"d":"88 %"},null,{"v":0.89,"d":"89 %"},null,{"v":0.885,"d":"89 %"}]
[null,null,"Gestión Documental, Ventanilla Única y Atención al Ciudadano","Satisfacción del ciudadano","Puntos totales/puntos posibles*100","EFICACIA","Medir la satisfacción en cuanto a la atención que se le da a los ciudadanos que se acercan al Instituto a solicitar información",{"v":0.9,"d":"90 %"},"Trimestral","Encuestas de satisfacción","Contratista de Apoyo – Gestión Documental",{"v":0.97,"d":"97 %"},{"v":0.97,"d":"97 %"},{"v":0.95,"d":"95 %"},{"v":0.98,"d":"98 %"},{"v":0.9674999999999999,"d":"97 %"}]
[null,null,"Fomento y Desarrollo Social","Satisfacción de eventos ","∑ de porcentaje de calificacion del evento/ numer de eventos x 100","EFECTIVIDAD","Identifica la percepción de los usuarios que asisten a los diferentes eventos ejecutados por el proceso, con el fin de medir la satisfaccion del usuario en los eventos del proceso de Fomento y Desarrollo Social.",{"v":0.9,"d":"90 %"},"Semestal","Encuestas de satisfacción ","Contratista Líder Fomento y Desarrollo Social ",{"v":0.96,"d":"96 %"},null,{"v":0.89,"d":"89 %"},null,{"v":0.925,"d":"93 %"}]
[null,null,"Fomento y Desarrollo Social","Satisfacción de programas ","∑ de porcentaje de calificacion por programa/ numero de programas x 100","EFECTIVIDAD","Identifica la percepción de los usuarios que asisten a los diferentes programas ejecutados por el proceso, con el fin de medir la satisfaccion del usuario en los programas del proceso de Fomento y Desarrollo Social.",{"v":0.9,"d":"90 %"},"Semestral","Encuestas de satisfacción ","Contratista Líder Fomento y Desarrollo Social ",{"v":0.94,"d":"94 %"},null,{"v":0.96,"d":"96 %"},null,{"v":0.95,"d":"95 %"}]
[null,null,"Gestión de Calidad","Indicador General de satisfacción","Promedio general de las encuestas","EFECTIVIDAD","Medir la satisfacción general de la comunidad, deportistas y usuarios de Insdeportes Cajicá",{"v":0.8,"d":"80 %"},"Trimestralmente","Encuestas de satisfacción, suministradas por los procesos","Contratista Gestión de Calidad",{"v":0.96,"d":"96 %"},{"v":0.93,"d":"93 %"},{"v":0.94,"d":"94 %"},{"v":0.95,"d":"95 %"},{"v":0.9450000000000001,"d":"95 %"}]

{"sheet":"Hoja2","index":1,"n_rows":21,"n_cols":4,"rows_kept":21,"hidden":true}
[]
[]
[null,"Almacén",null,"EFICIENCIA"]
[null,"Control Interno",null,"EFICACIA"]
[null,"Deporte Altos Logros",null,"EFECTIVIDAD"]
[null,"Deporte Asociado y Competitivo"]
[null,"Fomento y Desarrollo Social"]
[null,"Deporte Formativo Escolar"]
[null,"Gestión Administrativa"]
[null,"Gestión Contractual"]
[null,"Gestión de Calidad"]
[null,"Gestión de Comunicaciones"]
[null,"Gestión de Recursos Tecnológicos y plataformas Digitales"]
[null,"Gestión Documental, Ventanilla Única y Atención al Ciudadano"]
[null,"Gestión Financiera"]
[null,"Gestión Física de Escenarios Deportivos"]
[null,"Gestión Humana"]
[null,"Gestión Jurídica"]
[null,"Planeación Estratégica"]
[null,"Sistema de Gestión de Seguridad y Salud en el Trabajo"]
["falta 1","Área Técnica Misional "]